[Event "Titled Tuesday Blitz November 14 Early 2023"]
[White "Ghosh, Chanchal Kumer"]
[Black "ChessLebaneseSalah"]
[WhiteFideId "10201858"]
[WhiteElo "2152"]
[BlackElo "2419"]
[Result "1-0"]
[Round "11"]
[TimeControl "180+1"]
[Date "2023.11.14"]
[WhiteClock "0:00:07"]
[BlackClock "0:00:04"]
[Board "101"]

1. e4 {[%clk 0:02:58]}  c5 {[%clk 0:03:00]} 2. Nf3 {[%clk 0:02:58]}  d6 {[%clk 0:02:59]} 3. d4 {[%clk 0:02:59]}  cxd4 {[%clk 0:03:00]} 4. Nxd4 {[%clk 0:03:00]}  Nf6 {[%clk 0:03:01]} 5. Nc3 {[%clk 0:03:00]}  Nc6 {[%clk 0:03:01]} 6. Be2 {[%clk 0:03:01]}  g6 {[%clk 0:03:00]} 7. Be3 {[%clk 0:03:00]}  Bg7 {[%clk 0:03:00]} 8. O-O {[%clk 0:03:00]}  O-O {[%clk 0:03:01]} 9. f4 {[%clk 0:02:57]}  a6 {[%clk 0:02:59]} 10. Kh1 {[%clk 0:02:56]}  e5 {[%clk 0:02:58]} 11. Nxc6 {[%clk 0:02:51]}  bxc6 {[%clk 0:02:58]} 12. f5 {[%clk 0:02:51]}  d5 {[%clk 0:02:56]} 13. Bc5 {[%clk 0:02:40]}  d4 {[%clk 0:02:49]} 14. Bxf8 {[%clk 0:02:28]}  Bxf8 {[%clk 0:02:49]} 15. fxg6 {[%clk 0:02:21]}  hxg6 {[%clk 0:02:41]} 16. Bf3 {[%clk 0:02:11]}  Be6 {[%clk 0:02:41]} 17. Ne2 {[%clk 0:02:09]}  Rb8 {[%clk 0:02:41]} 18. b3 {[%clk 0:02:09]}  Kg7 {[%clk 0:02:41]} 19. Ng3 {[%clk 0:02:05]}  Bd6 {[%clk 0:02:40]} 20. Qd2 {[%clk 0:02:04]}  Qh8 {[%clk 0:02:38]} 21. Qg5 {[%clk 0:02:02]}  Qh7 {[%clk 0:02:09]} 22. Be2 {[%clk 0:01:40]}  Be7 {[%clk 0:02:05]} 23. Nf5+ {[%clk 0:01:35]}  Bxf5 {[%clk 0:02:04]} 24. exf5 {[%clk 0:01:35]}  Rh8 {[%clk 0:01:46]} 25. h3 {[%clk 0:01:19]}  c5 {[%clk 0:01:27]} 26. fxg6 {[%clk 0:01:09]}  fxg6 {[%clk 0:01:28]} 27. Bd3 {[%clk 0:00:56]}  Qh5 {[%clk 0:01:20]} 28. Qg3 {[%clk 0:00:49]}  e4 {[%clk 0:01:16]} 29. Qc7 {[%clk 0:00:35]}  Re8 {[%clk 0:01:05]} 30. Rxf6 {[%clk 0:00:29]}  exd3 {[%clk 0:00:39]} 31. Rf2 {[%clk 0:00:19]}  dxc2 {[%clk 0:00:32]} 32. Rxc2 {[%clk 0:00:19]}  Qf5 {[%clk 0:00:28]} 33. Re2 {[%clk 0:00:17]}  Qf6 {[%clk 0:00:20]} 34. Rae1 {[%clk 0:00:17]}  Kf7 {[%clk 0:00:20]} 35. Re4 {[%clk 0:00:16]}  g5 {[%clk 0:00:16]} 36. Kg1 {[%clk 0:00:12]}  d3 {[%clk 0:00:08]} 37. Rf1 {[%clk 0:00:12]}  d2 {[%clk 0:00:07]} 38. Rxf6+ {[%clk 0:00:11]}  Kxf6 {[%clk 0:00:08]} 39. Qd7 {[%clk 0:00:09]}  Kf7 {[%clk 0:00:07]} 40. Qxd2 {[%clk 0:00:07]}  Rd8 {[%clk 0:00:06]} 41. Qf2+ {[%clk 0:00:07]}  Bf6 {[%clk 0:00:06]} 42. Qe2 {[%clk 0:00:06]}  Bd4+ {[%clk 0:00:06]} 43. Kh2 {[%clk 0:00:06]}  Bf6 {[%clk 0:00:05]} 44. g4 {[%clk 0:00:05]}  Rd7 {[%clk 0:00:05]} 45. Re6 {[%clk 0:00:05]}  Bc3 {[%clk 0:00:04]} 46. Rxa6 {[%clk 0:00:05]}  Rd2 {[%clk 0:00:04]} 47. Qxd2 {[%clk 0:00:05]}  Bxd2 {[%clk 0:00:04]} 48. Kg3 {[%clk 0:00:05]}  Bf4+ {[%clk 0:00:05]} 49. Kf3 {[%clk 0:00:05]}  Ke7 {[%clk 0:00:05]} 50. a4 {[%clk 0:00:06]}  Kd7 {[%clk 0:00:05]} 51. Rg6 {[%clk 0:00:06]}  Bc1 {[%clk 0:00:05]} 52. Ke4 {[%clk 0:00:06]}  Kc7 {[%clk 0:00:04]} 53. Kf5 {[%clk 0:00:06]}  Kb7 {[%clk 0:00:04]} 54. Rxg5 {[%clk 0:00:07]}  c4 {[%clk 0:00:04]} 55. bxc4 {[%clk 0:00:07]} 1-0


[Site "https://www.chess.com"]

[Event "Titled Tuesday Blitz November 14 Early 2023"]
[White "Kleiman, Jake"]
[Black "Herman, Daniel"]
[WhiteFideId "2020041"]
[BlackFideId "30935008"]
[WhiteElo "2593"]
[BlackElo "2407"]
[Result "1-0"]
[Round "11"]
[TimeControl "180+1"]
[Date "2023.11.14"]
[WhiteClock "0:00:11"]
[BlackClock "0:00:04"]
[Board "102"]

1. h4 {[%clk 0:02:57]}  e5 {[%clk 0:02:59]} 2. c4 {[%clk 0:02:54]}  d5 {[%clk 0:02:57]} 3. cxd5 {[%clk 0:02:54]}  c6 {[%clk 0:02:57]} 4. d6 {[%clk 0:02:52]}  Bxd6 {[%clk 0:02:56]} 5. Nc3 {[%clk 0:02:51]}  Nf6 {[%clk 0:02:55]} 6. d3 {[%clk 0:02:50]}  c5 {[%clk 0:02:55]} 7. g3 {[%clk 0:02:47]}  Nc6 {[%clk 0:02:55]} 8. Bg2 {[%clk 0:02:48]}  O-O {[%clk 0:02:53]} 9. Nf3 {[%clk 0:02:43]}  Bg4 {[%clk 0:02:51]} 10. Nd2 {[%clk 0:02:39]}  Nd4 {[%clk 0:02:50]} 11. Nc4 {[%clk 0:02:33]}  Bc7 {[%clk 0:02:34]} 12. Bg5 {[%clk 0:02:15]}  h6 {[%clk 0:02:31]} 13. Bxf6 {[%clk 0:02:16]}  Qxf6 {[%clk 0:02:32]} 14. Ne3 {[%clk 0:02:14]}  Be6 {[%clk 0:02:20]} 15. Ned5 {[%clk 0:02:01]}  Qd8 {[%clk 0:02:19]} 16. O-O {[%clk 0:01:58]}  Bd6 {[%clk 0:02:14]} 17. e3 {[%clk 0:01:55]}  Nf5 {[%clk 0:02:07]} 18. Rc1 {[%clk 0:01:55]}  Rb8 {[%clk 0:02:01]} 19. a4 {[%clk 0:01:42]}  a6 {[%clk 0:01:47]} 20. Be4 {[%clk 0:01:24]}  b5 {[%clk 0:01:41]} 21. axb5 {[%clk 0:01:25]}  axb5 {[%clk 0:01:41]} 22. Qf3 {[%clk 0:01:26]}  Nxh4 {[%clk 0:01:25]} 23. gxh4 {[%clk 0:01:08]}  f5 {[%clk 0:01:26]} 24. Qg3 {[%clk 0:00:44]}  fxe4 {[%clk 0:01:24]} 25. dxe4 {[%clk 0:00:45]}  b4 {[%clk 0:01:10]} 26. Ne2 {[%clk 0:00:45]}  Bxd5 {[%clk 0:01:10]} 27. exd5 {[%clk 0:00:44]}  e4 {[%clk 0:01:11]} 28. Qg4 {[%clk 0:00:43]}  Rf3 {[%clk 0:00:43]} 29. Qxe4 {[%clk 0:00:32]}  Qf8 {[%clk 0:00:30]} 30. Nf4 {[%clk 0:00:26]}  Rxf4 {[%clk 0:00:21]} 31. exf4 {[%clk 0:00:26]}  Re8 {[%clk 0:00:22]} 32. Qf3 {[%clk 0:00:23]}  Qf5 {[%clk 0:00:22]} 33. Rce1 {[%clk 0:00:20]}  Rf8 {[%clk 0:00:22]} 34. Re4 {[%clk 0:00:14]}  Rf6 {[%clk 0:00:21]} 35. Kh1 {[%clk 0:00:12]}  Rg6 {[%clk 0:00:20]} 36. Rfe1 {[%clk 0:00:11]}  Kh7 {[%clk 0:00:19]} 37. Re6 {[%clk 0:00:10]}  Rg4 {[%clk 0:00:14]} 38. Qe4 {[%clk 0:00:11]}  Qxe4+ {[%clk 0:00:13]} 39. R1xe4 {[%clk 0:00:11]}  Rxh4+ {[%clk 0:00:13]} 40. Kg2 {[%clk 0:00:10]}  Rxf4 {[%clk 0:00:07]} 41. Rxf4 {[%clk 0:00:10]}  Bxf4 {[%clk 0:00:08]} 42. d6 {[%clk 0:00:10]}  c4 {[%clk 0:00:08]} 43. d7 {[%clk 0:00:10]}  Bg5 {[%clk 0:00:09]} 44. Rc6 {[%clk 0:00:10]}  c3 {[%clk 0:00:07]} 45. bxc3 {[%clk 0:00:10]}  b3 {[%clk 0:00:04]} 46. Rb6 {[%clk 0:00:11]} 1-0


[Site "https://www.chess.com"]

[Event "Titled Tuesday Blitz November 14 Early 2023"]
[White "Karamsetty, Jeevan"]
[Black "Nastase, Robert-Paul"]
[WhiteFideId "2025337"]
[BlackFideId "1221175"]
[WhiteElo "2582"]
[BlackElo "2402"]
[Result "0-1"]
[Round "11"]
[TimeControl "180+1"]
[Date "2023.11.14"]
[WhiteClock "0:00:15"]
[BlackClock "0:00:05"]
[Board "103"]

1. g3 {[%clk 0:03:00]}  a6 {[%clk 0:02:57]} 2. Bg2 {[%clk 0:03:01]}  h6 {[%clk 0:02:56]} 3. b4 {[%clk 0:02:59]}  e6 {[%clk 0:02:55]} 4. a3 {[%clk 0:02:59]}  Nf6 {[%clk 0:02:53]} 5. Bb2 {[%clk 0:02:59]}  Be7 {[%clk 0:02:53]} 6. Nf3 {[%clk 0:02:59]}  O-O {[%clk 0:02:54]} 7. O-O {[%clk 0:03:00]}  d5 {[%clk 0:02:54]} 8. d3 {[%clk 0:03:00]}  c5 {[%clk 0:02:32]} 9. Qd2 {[%clk 0:02:52]}  Nc6 {[%clk 0:02:26]} 10. c3 {[%clk 0:02:45]}  Qb6 {[%clk 0:02:22]} 11. d4 {[%clk 0:02:39]}  cxd4 {[%clk 0:02:09]} 12. Nxd4 {[%clk 0:02:36]}  Ne5 {[%clk 0:02:05]} 13. Bc1 {[%clk 0:02:33]}  Nc4 {[%clk 0:01:54]} 14. Qc2 {[%clk 0:02:27]}  Bd7 {[%clk 0:01:48]} 15. Nd2 {[%clk 0:02:24]}  Rac8 {[%clk 0:01:47]} 16. Nxc4 {[%clk 0:02:23]}  Rxc4 {[%clk 0:01:48]} 17. Be3 {[%clk 0:02:22]}  Qc7 {[%clk 0:01:42]} 18. Rfc1 {[%clk 0:02:13]}  Rc8 {[%clk 0:01:41]} 19. Qa2 {[%clk 0:01:54]}  e5 {[%clk 0:01:19]} 20. Nb3 {[%clk 0:01:53]}  Ng4 {[%clk 0:00:53]} 21. Bd2 {[%clk 0:01:45]}  Qb6 {[%clk 0:00:34]} 22. e3 {[%clk 0:01:45]}  Be6 {[%clk 0:00:34]} 23. Na5 {[%clk 0:01:39]}  d4 {[%clk 0:00:25]} 24. Nxc4 {[%clk 0:01:36]}  Bxc4 {[%clk 0:00:26]} 25. Qb2 {[%clk 0:01:33]}  dxe3 {[%clk 0:00:27]} 26. fxe3 {[%clk 0:01:32]}  Nxe3 {[%clk 0:00:28]} 27. Bxe3 {[%clk 0:01:33]}  Qxe3+ {[%clk 0:00:29]} 28. Qf2 {[%clk 0:01:33]}  Bg5 {[%clk 0:00:27]} 29. Re1 {[%clk 0:01:04]}  Qxc3 {[%clk 0:00:27]} 30. Rac1 {[%clk 0:01:05]}  Qxa3 {[%clk 0:00:26]} 31. Bxb7 {[%clk 0:01:05]}  Rc7 {[%clk 0:00:26]} 32. Bd5 {[%clk 0:00:58]}  Bxc1 {[%clk 0:00:24]} 33. Rxe5 {[%clk 0:00:43]}  Bxd5 {[%clk 0:00:23]} 34. Re8+ {[%clk 0:00:42]}  Kh7 {[%clk 0:00:23]} 35. Qf5+ {[%clk 0:00:40]}  g6 {[%clk 0:00:24]} 36. Qxd5 {[%clk 0:00:34]}  Be3+ {[%clk 0:00:22]} 37. Kg2 {[%clk 0:00:35]}  Qb2+ {[%clk 0:00:08]} 38. Kh3 {[%clk 0:00:35]}  Qd4 {[%clk 0:00:05]} 39. Qf3 {[%clk 0:00:30]}  Qd7+ {[%clk 0:00:05]} 40. Re6 {[%clk 0:00:17]}  Qxe6+ {[%clk 0:00:05]} 41. g4 {[%clk 0:00:15]}  Rc4 {[%clk 0:00:05]} 0-1


[Site "https://www.chess.com"]

[Event "Titled Tuesday Blitz November 14 Early 2023"]
[White "Belov, Alexei"]
[Black "UK_23"]
[WhiteFideId "4128206"]
[WhiteElo "2581"]
[BlackElo "2401"]
[Result "0-1"]
[Round "11"]
[TimeControl "180+1"]
[Date "2023.11.14"]
[WhiteClock "0:01:05"]
[BlackClock "0:01:12"]
[Board "104"]

1. e4 {[%clk 0:03:00]}  e5 {[%clk 0:02:59]} 2. Nf3 {[%clk 0:03:00]}  Nc6 {[%clk 0:03:00]} 3. Bb5 {[%clk 0:03:00]}  a6 {[%clk 0:02:56]} 4. Ba4 {[%clk 0:03:01]}  Nf6 {[%clk 0:02:57]} 5. d4 {[%clk 0:03:01]}  exd4 {[%clk 0:02:55]} 6. O-O {[%clk 0:03:01]}  Be7 {[%clk 0:02:53]} 7. e5 {[%clk 0:03:00]}  Ne4 {[%clk 0:02:49]} 8. Nxd4 {[%clk 0:03:00]}  O-O {[%clk 0:02:41]} 9. Nf5 {[%clk 0:02:59]}  d5 {[%clk 0:02:35]} 10. Nxe7+ {[%clk 0:02:58]}  Nxe7 {[%clk 0:02:35]} 11. c3 {[%clk 0:02:58]}  c6 {[%clk 0:02:19]} 12. Be3 {[%clk 0:02:53]}  Ng6 {[%clk 0:02:18]} 13. f4 {[%clk 0:02:49]}  f6 {[%clk 0:02:15]} 14. exf6 {[%clk 0:02:45]}  Qxf6 {[%clk 0:02:15]} 15. Nd2 {[%clk 0:02:36]}  Bf5 {[%clk 0:02:03]} 16. Bc2 {[%clk 0:02:29]}  Rae8 {[%clk 0:02:01]} 17. Nxe4 {[%clk 0:02:25]}  Bxe4 {[%clk 0:02:00]} 18. Bxe4 {[%clk 0:02:24]}  Rxe4 {[%clk 0:02:01]} 19. Bd4 {[%clk 0:02:23]}  Qf5 {[%clk 0:01:55]} 20. g4 {[%clk 0:02:04]}  Qd7 {[%clk 0:01:44]} 21. f5 {[%clk 0:02:03]}  Ne5 {[%clk 0:01:37]} 22. h3 {[%clk 0:01:59]}  Re8 {[%clk 0:01:31]} 23. Kh1 {[%clk 0:01:40]}  Nc4 {[%clk 0:01:30]} 24. b3 {[%clk 0:01:30]}  Ne3 {[%clk 0:01:29]} 25. Bxe3 {[%clk 0:01:30]}  Rxe3 {[%clk 0:01:30]} 26. Rf3 {[%clk 0:01:31]}  Qe7 {[%clk 0:01:17]} 27. Rxe3 {[%clk 0:01:09]}  Qxe3 {[%clk 0:01:17]} 28. Kg2 {[%clk 0:01:10]}  Qxc3 {[%clk 0:01:14]} 29. Qf3 {[%clk 0:01:05]}  Qxa1 {[%clk 0:01:12]} 0-1


[Site "https://www.chess.com"]

[Event "Titled Tuesday Blitz November 14 Early 2023"]
[White "Jaskolka, Tomasz"]
[Black "Ron_Weasley_Chess"]
[WhiteFideId "1170791"]
[WhiteElo "2542"]
[BlackElo "2398"]
[Result "1-0"]
[Round "11"]
[TimeControl "180+1"]
[Date "2023.11.14"]
[WhiteClock "0:01:05"]
[BlackClock "0:00:38"]
[Board "105"]

1. e4 {[%clk 0:03:00]}  c6 {[%clk 0:02:58]} 2. d4 {[%clk 0:02:58]}  d5 {[%clk 0:02:55]} 3. exd5 {[%clk 0:02:59]}  cxd5 {[%clk 0:02:54]} 4. Bd3 {[%clk 0:03:00]}  Nc6 {[%clk 0:02:49]} 5. Nf3 {[%clk 0:03:00]}  Bg4 {[%clk 0:02:48]} 6. c3 {[%clk 0:03:01]}  e6 {[%clk 0:02:48]} 7. h3 {[%clk 0:03:00]}  Bh5 {[%clk 0:02:47]} 8. Bf4 {[%clk 0:02:59]}  Bd6 {[%clk 0:02:46]} 9. Bxd6 {[%clk 0:02:59]}  Qxd6 {[%clk 0:02:46]} 10. Nbd2 {[%clk 0:03:00]}  Nge7 {[%clk 0:02:46]} 11. Qb3 {[%clk 0:02:58]}  O-O {[%clk 0:02:43]} 12. O-O {[%clk 0:02:52]}  a5 {[%clk 0:02:39]} 13. Rfe1 {[%clk 0:02:46]}  Bg6 {[%clk 0:02:36]} 14. Bxg6 {[%clk 0:02:45]}  Nxg6 {[%clk 0:02:37]} 15. Nf1 {[%clk 0:02:38]}  a4 {[%clk 0:02:36]} 16. Qc2 {[%clk 0:02:38]}  b5 {[%clk 0:02:35]} 17. a3 {[%clk 0:02:37]}  Rfc8 {[%clk 0:02:33]} 18. Ne3 {[%clk 0:02:38]}  Na5 {[%clk 0:02:25]} 19. Ng4 {[%clk 0:02:35]}  Nc4 {[%clk 0:02:18]} 20. Nge5 {[%clk 0:02:33]}  Ngxe5 {[%clk 0:02:17]} 21. Nxe5 {[%clk 0:02:33]}  f6 {[%clk 0:02:11]} 22. Nd3 {[%clk 0:02:29]}  e5 {[%clk 0:02:08]} 23. dxe5 {[%clk 0:02:28]}  fxe5 {[%clk 0:02:09]} 24. Nb4 {[%clk 0:02:27]}  d4 {[%clk 0:02:00]} 25. Rad1 {[%clk 0:02:25]}  Rd8 {[%clk 0:01:50]} 26. cxd4 {[%clk 0:02:20]}  exd4 {[%clk 0:01:51]} 27. Qf5 {[%clk 0:02:13]}  Nxb2 {[%clk 0:01:45]} 28. Rd2 {[%clk 0:01:55]}  Nc4 {[%clk 0:01:45]} 29. Rde2 {[%clk 0:01:55]}  Nxa3 {[%clk 0:01:35]} 30. Nd5 {[%clk 0:01:49]}  Rf8 {[%clk 0:01:21]} 31. Qh5 {[%clk 0:01:35]}  g6 {[%clk 0:01:16]} 32. Qg5 {[%clk 0:01:28]}  Rae8 {[%clk 0:01:03]} 33. Rxe8 {[%clk 0:01:21]}  d3 {[%clk 0:00:48]} 34. Nf6+ {[%clk 0:01:11]}  Kf7 {[%clk 0:00:38]} 35. R1e7+ {[%clk 0:01:05]} 1-0


[Site "https://www.chess.com"]

[Event "Titled Tuesday Blitz November 14 Early 2023"]
[White "Kochiev, Ivan"]
[Black "MarijaKuznecova"]
[WhiteFideId "2917890"]
[WhiteElo "2515"]
[BlackElo "2376"]
[Result "0-1"]
[Round "11"]
[TimeControl "180+1"]
[Date "2023.11.14"]
[WhiteClock "0:00:02"]
[BlackClock "0:00:03"]
[Board "106"]

1. e4 {[%clk 0:02:59]}  c5 {[%clk 0:02:59]} 2. Nf3 {[%clk 0:02:58]}  d6 {[%clk 0:02:58]} 3. d4 {[%clk 0:02:52]}  cxd4 {[%clk 0:02:59]} 4. Nxd4 {[%clk 0:02:53]}  Nf6 {[%clk 0:02:59]} 5. f3 {[%clk 0:02:53]}  e5 {[%clk 0:02:58]} 6. Nb3 {[%clk 0:02:53]}  d5 {[%clk 0:02:58]} 7. Bg5 {[%clk 0:02:53]}  d4 {[%clk 0:02:57]} 8. c3 {[%clk 0:02:52]}  Nc6 {[%clk 0:02:55]} 9. Bb5 {[%clk 0:02:52]}  Be6 {[%clk 0:02:40]} 10. cxd4 {[%clk 0:02:40]}  Bxb3 {[%clk 0:02:27]} 11. Qxb3 {[%clk 0:02:18]}  Qxd4 {[%clk 0:02:21]} 12. Be3 {[%clk 0:01:49]}  Bb4+ {[%clk 0:02:13]} 13. Kf2 {[%clk 0:01:44]}  Qd6 {[%clk 0:02:05]} 14. Nc3 {[%clk 0:01:44]}  O-O {[%clk 0:02:01]} 15. Rhd1 {[%clk 0:01:33]}  Qe7 {[%clk 0:02:01]} 16. Nd5 {[%clk 0:01:23]}  Nxd5 {[%clk 0:02:00]} 17. Rxd5 {[%clk 0:01:19]}  Rac8 {[%clk 0:01:39]} 18. Rad1 {[%clk 0:01:13]}  Nd4 {[%clk 0:01:29]} 19. Bxd4 {[%clk 0:00:52]}  exd4 {[%clk 0:01:30]} 20. a3 {[%clk 0:00:50]}  Bc5 {[%clk 0:01:28]} 21. Kg1 {[%clk 0:00:46]}  Qh4 {[%clk 0:01:17]} 22. Bf1 {[%clk 0:00:28]}  Kh8 {[%clk 0:00:55]} 23. Qxb7 {[%clk 0:00:19]}  Rb8 {[%clk 0:00:38]} 24. Qc7 {[%clk 0:00:09]}  Bb6 {[%clk 0:00:27]} 25. Qg3 {[%clk 0:00:08]}  Qf6 {[%clk 0:00:25]} 26. b4 {[%clk 0:00:08]}  Rbc8 {[%clk 0:00:20]} 27. h4 {[%clk 0:00:05]}  Rc2 {[%clk 0:00:18]} 28. Bd3 {[%clk 0:00:03]}  Rc3 {[%clk 0:00:18]} 29. Rh5 {[%clk 0:00:03]}  h6 {[%clk 0:00:15]} 30. e5 {[%clk 0:00:02]}  Qe7 {[%clk 0:00:11]} 31. Qf4 {[%clk 0:00:03]}  Kg8 {[%clk 0:00:08]} 32. Bf5 {[%clk 0:00:02]}  f6 {[%clk 0:00:06]} 33. exf6 {[%clk 0:00:01]}  Qxf6 {[%clk 0:00:06]} 34. Qe4 {[%clk 0:00:01]}  Re3 {[%clk 0:00:04]} 35. Qb1 {[%clk 0:00:02]}  d3 {[%clk 0:00:04]} 36. Kh1 {[%clk 0:00:02]}  g6 {[%clk 0:00:03]} 37. Bxd3 {[%clk 0:00:01]}  gxh5 {[%clk 0:00:03]} 38. Bc4+ {[%clk 0:00:01]}  Kh8 {[%clk 0:00:03]} 39. Qb3 {[%clk 0:00:02]}  Qxh4+ {[%clk 0:00:02]} 40. Kg1 {[%clk 0:00:02]}  Rxb3+ {[%clk 0:00:02]} 41. Kf1 {[%clk 0:00:02]}  Qf2# {[%clk 0:00:03]} 0-1


[Site "https://www.chess.com"]

[Event "Titled Tuesday Blitz November 14 Early 2023"]
[White "Dmitrenko, Viktor"]
[Black "elmusmolamas"]
[WhiteFideId "14110270"]
[WhiteElo "2366"]
[BlackElo "2499"]
[Result "0-1"]
[Round "11"]
[TimeControl "180+1"]
[Date "2023.11.14"]
[WhiteClock "0:00:00"]
[BlackClock "0:00:58"]
[Board "108"]

1. e4 {[%clk 0:03:00]}  c5 {[%clk 0:02:55]} 2. Nf3 {[%clk 0:03:00]}  d6 {[%clk 0:02:55]} 3. Bb5+ {[%clk 0:03:00]}  Bd7 {[%clk 0:02:53]} 4. Bxd7+ {[%clk 0:03:00]}  Nxd7 {[%clk 0:02:54]} 5. O-O {[%clk 0:02:57]}  g6 {[%clk 0:02:54]} 6. c3 {[%clk 0:02:33]}  Ngf6 {[%clk 0:02:53]} 7. Qe2 {[%clk 0:02:31]}  Bg7 {[%clk 0:02:53]} 8. d4 {[%clk 0:02:30]}  O-O {[%clk 0:02:54]} 9. Rd1 {[%clk 0:02:12]}  Qc7 {[%clk 0:02:54]} 10. e5 {[%clk 0:01:57]}  Nd5 {[%clk 0:02:54]} 11. exd6 {[%clk 0:01:56]}  Qxd6 {[%clk 0:02:28]} 12. c4 {[%clk 0:01:38]}  N5f6 {[%clk 0:02:28]} 13. dxc5 {[%clk 0:01:33]}  Qxc5 {[%clk 0:02:29]} 14. Be3 {[%clk 0:01:33]}  Qc7 {[%clk 0:02:28]} 15. Nc3 {[%clk 0:01:34]}  a6 {[%clk 0:02:26]} 16. Rac1 {[%clk 0:01:33]}  e6 {[%clk 0:02:24]} 17. h3 {[%clk 0:01:29]}  Nc5 {[%clk 0:02:21]} 18. Bd4 {[%clk 0:01:21]}  Nh5 {[%clk 0:02:05]} 19. Bxg7 {[%clk 0:01:08]}  Nxg7 {[%clk 0:02:06]} 20. Qe5 {[%clk 0:00:57]}  Qxe5 {[%clk 0:02:02]} 21. Nxe5 {[%clk 0:00:58]}  f6 {[%clk 0:01:49]} 22. Nd7 {[%clk 0:00:53]}  Nxd7 {[%clk 0:01:47]} 23. Rxd7 {[%clk 0:00:54]}  Rf7 {[%clk 0:01:48]} 24. Rcd1 {[%clk 0:00:53]}  Raf8 {[%clk 0:01:40]} 25. Ne4 {[%clk 0:00:43]}  Nf5 {[%clk 0:01:24]} 26. Nc5 {[%clk 0:00:35]}  e5 {[%clk 0:01:18]} 27. Nxb7 {[%clk 0:00:22]}  Nd4 {[%clk 0:01:13]} 28. Rxf7 {[%clk 0:00:20]}  Kxf7 {[%clk 0:01:14]} 29. Nc5 {[%clk 0:00:16]}  Rc8 {[%clk 0:01:11]} 30. b4 {[%clk 0:00:16]}  Nc2 {[%clk 0:00:59]} 31. Rb1 {[%clk 0:00:13]}  a5 {[%clk 0:00:58]} 32. a3 {[%clk 0:00:12]}  Nxa3 {[%clk 0:00:58]} 33. Rb3 {[%clk 0:00:04]}  axb4 {[%clk 0:00:58]} 34. Rxb4 {[%clk 0:00:00]}  Rxc5 {[%clk 0:00:58]} 0-1


[Site "https://www.chess.com"]

[Event "Titled Tuesday Blitz November 14 Early 2023"]
[White "Kanyamarala, Trisha"]
[Black "Skaric, Djuro"]
[WhiteFideId "45004722"]
[BlackFideId "934569"]
[WhiteElo "2492"]
[BlackElo "2366"]
[Result "1-0"]
[Round "11"]
[TimeControl "180+1"]
[Date "2023.11.14"]
[WhiteClock "0:00:05"]
[BlackClock "0:00:24"]
[Board "109"]

1. c4 {[%clk 0:02:56]}  d6 {[%clk 0:02:41]} 2. Nc3 {[%clk 0:02:53]}  g6 {[%clk 0:02:41]} 3. g3 {[%clk 0:02:53]}  Bg7 {[%clk 0:02:42]} 4. Bg2 {[%clk 0:02:53]}  Nf6 {[%clk 0:02:42]} 5. Nf3 {[%clk 0:02:53]}  O-O {[%clk 0:02:42]} 6. O-O {[%clk 0:02:53]}  Nc6 {[%clk 0:02:37]} 7. d4 {[%clk 0:02:50]}  h6 {[%clk 0:02:36]} 8. d5 {[%clk 0:02:47]}  Nb8 {[%clk 0:02:34]} 9. e4 {[%clk 0:02:43]}  e5 {[%clk 0:02:33]} 10. a3 {[%clk 0:02:38]}  Ne8 {[%clk 0:02:31]} 11. b4 {[%clk 0:02:36]}  f5 {[%clk 0:02:31]} 12. c5 {[%clk 0:02:36]}  f4 {[%clk 0:02:31]} 13. a4 {[%clk 0:02:31]}  Nd7 {[%clk 0:02:30]} 14. Ba3 {[%clk 0:02:29]}  g5 {[%clk 0:02:31]} 15. Ne1 {[%clk 0:02:26]}  Rf6 {[%clk 0:02:30]} 16. cxd6 {[%clk 0:02:22]}  cxd6 {[%clk 0:02:29]} 17. b5 {[%clk 0:02:21]}  Rg6 {[%clk 0:02:22]} 18. g4 {[%clk 0:02:06]}  Ndf6 {[%clk 0:02:17]} 19. h3 {[%clk 0:02:00]}  Bf8 {[%clk 0:02:16]} 20. Nd3 {[%clk 0:01:58]}  Kh7 {[%clk 0:02:14]} 21. Bb4 {[%clk 0:01:47]}  Rg7 {[%clk 0:02:14]} 22. a5 {[%clk 0:01:44]}  h5 {[%clk 0:02:14]} 23. f3 {[%clk 0:01:41]}  Ng8 {[%clk 0:02:13]} 24. a6 {[%clk 0:01:28]}  b6 {[%clk 0:02:13]} 25. Rc1 {[%clk 0:01:26]}  Nef6 {[%clk 0:02:09]} 26. Ba3 {[%clk 0:01:24]}  Nh6 {[%clk 0:02:08]} 27. Nf2 {[%clk 0:01:12]}  Bd7 {[%clk 0:02:04]} 28. Qd3 {[%clk 0:01:11]}  Rc8 {[%clk 0:02:03]} 29. Na2 {[%clk 0:01:10]}  hxg4 {[%clk 0:02:03]} 30. hxg4 {[%clk 0:01:09]}  Nhxg4 {[%clk 0:02:01]} 31. fxg4 {[%clk 0:01:08]}  Nxg4 {[%clk 0:02:00]} 32. Nxg4 {[%clk 0:01:02]}  Bxg4 {[%clk 0:02:00]} 33. Nb4 {[%clk 0:00:55]}  Rxc1 {[%clk 0:01:55]} 34. Rxc1 {[%clk 0:00:50]}  Bc8 {[%clk 0:01:55]} 35. Nc6 {[%clk 0:00:49]}  Qe8 {[%clk 0:01:54]} 36. Kf2 {[%clk 0:00:27]}  g4 {[%clk 0:01:55]} 37. Rh1+ {[%clk 0:00:26]}  Kg8 {[%clk 0:01:54]} 38. Qb3 {[%clk 0:00:17]}  f3 {[%clk 0:01:41]} 39. Bf1 {[%clk 0:00:16]}  Qg6 {[%clk 0:01:40]} 40. Nxe5 {[%clk 0:00:15]}  dxe5 {[%clk 0:01:37]} 41. Bxf8 {[%clk 0:00:13]}  Kxf8 {[%clk 0:01:37]} 42. Rh8+ {[%clk 0:00:12]}  Rg8 {[%clk 0:01:34]} 43. Qb4+ {[%clk 0:00:12]}  Ke8 {[%clk 0:01:33]} 44. Rxg8+ {[%clk 0:00:10]}  Qxg8 {[%clk 0:01:33]} 45. Qd6 {[%clk 0:00:10]}  g3+ {[%clk 0:01:31]} 46. Kxf3 {[%clk 0:00:10]}  Qg4+ {[%clk 0:01:31]} 47. Kg2 {[%clk 0:00:10]}  Qf4 {[%clk 0:01:31]} 48. Qg6+ {[%clk 0:00:09]}  Kd8 {[%clk 0:01:29]} 49. Qg8+ {[%clk 0:00:08]}  Kc7 {[%clk 0:01:28]} 50. Qxg3 {[%clk 0:00:08]}  Qd2+ {[%clk 0:01:21]} 51. Qf2 {[%clk 0:00:08]}  Qg5+ {[%clk 0:01:10]} 52. Qg3 {[%clk 0:00:08]}  Qxg3+ {[%clk 0:01:08]} 53. Kxg3 {[%clk 0:00:08]}  Kd6 {[%clk 0:01:08]} 54. Kf2 {[%clk 0:00:08]}  Kc5 {[%clk 0:01:08]} 55. Ke3 {[%clk 0:00:07]}  Bd7 {[%clk 0:01:08]} 56. Be2 {[%clk 0:00:07]}  Bxb5 {[%clk 0:01:08]} 57. Bxb5 {[%clk 0:00:07]}  Kxb5 {[%clk 0:01:08]} 58. Kd3 {[%clk 0:00:07]}  Kxa6 {[%clk 0:01:08]} 59. Kc4 {[%clk 0:00:06]}  Kb7 {[%clk 0:01:08]} 60. Kb5 {[%clk 0:00:06]}  a6+ {[%clk 0:01:08]} 61. Kb4 {[%clk 0:00:06]}  Kc7 {[%clk 0:01:09]} 62. Kc4 {[%clk 0:00:07]}  Kd6 {[%clk 0:01:09]} 63. Kb4 {[%clk 0:00:07]}  Ke7 {[%clk 0:01:06]} 64. Kc4 {[%clk 0:00:07]}  Kd7 {[%clk 0:01:06]} 65. Kb4 {[%clk 0:00:07]}  a5+ {[%clk 0:00:58]} 66. Kb5 {[%clk 0:00:07]}  Kd6 {[%clk 0:00:58]} 67. Kc4 {[%clk 0:00:07]}  a4 {[%clk 0:00:57]} 68. Kb4 {[%clk 0:00:07]}  b5 {[%clk 0:00:57]} 69. Ka3 {[%clk 0:00:05]}  Kc5 {[%clk 0:00:57]} 70. Kb2 {[%clk 0:00:05]}  b4 {[%clk 0:00:57]} 71. Ka2 {[%clk 0:00:05]}  a3 {[%clk 0:00:54]} 72. Kb3 {[%clk 0:00:05]}  Kb5 {[%clk 0:00:54]} 73. Ka2 {[%clk 0:00:04]}  Kc4 {[%clk 0:00:30]} 74. d6 {[%clk 0:00:04]}  Kc3 {[%clk 0:00:31]} 75. d7 {[%clk 0:00:04]}  b3+ {[%clk 0:00:31]} 76. Kxa3 {[%clk 0:00:04]}  b2 {[%clk 0:00:31]} 77. d8=Q {[%clk 0:00:04]}  b1=Q {[%clk 0:00:31]} 78. Qc7+ {[%clk 0:00:04]}  Kd3 {[%clk 0:00:27]} 79. Qd6+ {[%clk 0:00:04]}  Kxe4 {[%clk 0:00:27]} 80. Qg6+ {[%clk 0:00:04]}  Ke3 {[%clk 0:00:25]} 81. Qxb1 {[%clk 0:00:05]}  e4 {[%clk 0:00:26]} 82. Qe1+ {[%clk 0:00:04]}  Kd3 {[%clk 0:00:24]} 83. Kb3 {[%clk 0:00:05]} 1-0


[Site "https://www.chess.com"]